[Event "Presidents Day GM-Norm 2024"]
[Site "Santa Clara"]
[Date "2024.02.18"]
[Round "5.3"]
[White "Jiang, Lucas"]
[Black "Deng, Henry"]
[Result "1/2-1/2"]
[ECO "B40"]
[WhiteElo "2258"]
[BlackElo "2281"]
[Annotator "TA"]
[PlyCount "55"]
[EventDate "2024.02.13"]
[EventType "tourn"]
[EventCountry "USA"]
[SourceTitle "playchess.com"]
[Source "ChessBase"]
[SourceQuality "1"]
[TimeControl "5400+30"]

{[%evp 15,55,16,16,7,14,3,6,7,13,0,5,0,19,9,17,12,38,31,69,73,72,67,76,75,89,48,71,72,72,11,7,0,0,-35,-7,-18,-2,-20,-29,-32,-33,-31]} 1. e4 {[%emt 0:00:18]} c5 {[%emt 0:00:11]} 2. Nf3 {[%emt 0:00:05]} e6 {[%emt 0:00:03]} 3. d4 {[%emt 0:00:05]} cxd4 {[%emt 0:00:02]} 4. Nxd4 {[%emt 0:00:05]} Nf6 {[%emt 0:00:02]} 5. Bd3 {[%emt 0:00:07]} Nc6 {[%emt 0:00:24]} 6. Nxc6 {[%emt 0:00:24]} dxc6 {[%emt 0:00:20]} 7. Nd2 {[%emt 0:00:10]} e5 {[%emt 0:00:40]} 8. O-O {[%emt 0:00:06]} Bc5 {[%emt 0:01:28]} 9. Nb3 {[%emt 0:00:18]} Bd6 {[%emt 0:02:20]} 10. h3 {[%emt 0:03:40]} h6 {[%emt 0:00:35]} 11. Be3 {[%emt 0:02:02] The position is equal.} O-O {[%emt 0:01:23]} 12. Qe2 {[%emt 0:01:49]} Qe7 {[%emt 0:01:13]} 13. a4 {[%emt 0:03:18]} a5 {[%emt 0:03:29]} 14. Nd2 {[%emt 0:01:55][%cal Bb3d2,Bd2c4,Bc4e3,Be3f5][%mdl 32]} Be6 {[%emt 0:00:31]} 15. Bc4 {[%emt 0:02:13]} Nd7 {[%emt 0:02:46]} 16. Rfd1 {[%emt 0:06:27]} Bc5 {[%emt 0:05:09]} 17. Bxe6 {[%emt 0:12:38]} Qxe6 {[%emt 0:00:14]} 18. Nc4 {[%emt 0:01:02][%cal Od1d7] Rxd7! would now be deadly.} Bxe3 {[%emt 0:02:07]} 19. Nxe3 {[%emt 0:02:07] Strongly threatening Nf5.} Rfd8 {[%emt 0:01:36]} 20. Nf5 {[%emt 0:04:46] And now Rd6 would win. White is more active.} (20. Qc4 {simplifies} Qxc4 21. Nxc4 Kf8 22. f3) 20... Nc5 {[%emt 0:02:29] [#]} 21. Qe3 $1 {[%emt 0:01:08]} b6 {[%emt 0:01:09]} 22. b3 {[%emt 0:00:43]} ({Better is} 22. Rxd8+ $16 Rxd8 23. b4 axb4 24. a5) 22... Kh7 $11 {[%emt 0:02:56]} 23. Qe2 {[%emt 0:07:59]} g6 {[%emt 0:01:25]} 24. Ng3 {[%emt 0:00:37]} Kg7 {[%emt 0:02:04]} 25. Qe3 {[%emt 0:02:26]} Rd6 {[%emt 0:02:11]} 26. Rd2 {[%emt 0:03:36]} Rad8 {[%emt 0:01:37]} 27. Rad1 {[%emt 0:00:12]} Rxd2 {[%emt 0:00:08]} 28. Rxd2 {[%emt 0:44:14] Weighted Error Value: White=0.14 (very precise) /Black=0.09 (flawless) .  Mistake:       	White=1     	---        Inaccurate:     	White=2     	Black=3      OK:         	White=3     	Black=5      Best:        	---       	Black=2      Strong:       	White=1     	---} 1/2-1/2

[Event "Presidents Day GM-Norm 2024"]
[Site "Santa Clara"]
[Date "2024.02.18"]
[Round "5.4"]
[White "Delgado Ramirez, Neuris"]
[Black "Wang, Isaac"]
[Result "1/2-1/2"]
[ECO "B43"]
[WhiteElo "2517"]
[BlackElo "2316"]
[Annotator "TA"]
[PlyCount "80"]
[EventDate "2024.02.13"]
[EventType "tourn"]
[EventCountry "USA"]
[SourceTitle "playchess.com"]
[Source "ChessBase"]
[SourceQuality "1"]
[TimeControl "5400+30"]

{[%evp 13,80,28,21,0,0,0,0,-17,-20,-1,0,-8,0,-4,0,0,0,0,0,0,0,0,0,0,0,0,0,0,0,0,0,-12,0,0,33,0,44,0,0,0,0,0,0,0,0,0,0,0,0,0,0,0,0,0,13,13,19,0,0,-20,-10,-15,-9,-12,-19,-75,-7,-72,-69]} 1. e4 {[%emt 0:16:40]} c5 {[%emt 0:00:09]} 2. Nf3 {[%emt 0:00:08]} e6 {[%emt 0:00:07]} 3. d4 {[%emt 0:00:20]} cxd4 {[%emt 0:00:05]} 4. Nxd4 {[%emt 0:00:04]} a6 {[%emt 0:00:08]} 5. Nc3 {[%emt 0:00:30]} b5 {[%emt 0:00:14][%cal Bb7b5,Bb5b4][%mdl 32]} 6. Bd3 {[%emt 0:00:24]} Bb7 {[%emt 0:00:06]} 7. O-O {[%emt 0:00:13]} Nc6 {[%emt 0:00:16]} 8. Nf3 {[%emt 0:01:17]} d6 {[%emt 0:01:56]} 9. a4 {[%emt 0:00:16]} b4 {[%emt 0:00:33]} 10. Na2 {[%emt 0:00:02] The position is equal.} Nf6 {[%emt 0:00:52]} 11. Bd2 {[%emt 0:01:16][%cal Od1e1]} Be7 {[%emt 0:04:15]} 12. Re1 {[%emt 0:03:55]} a5 {[%emt 0:02:19]} 13. c3 {[%emt 0:01:19]} bxc3 {[%emt 0:00:54]} 14. Nxc3 {[%emt 0:00:13]} O-O {[%emt 0:01:36]} 15. Rc1 {[%emt 0:00:50]} Nb4 {[%emt 0:01:45]} 16. Bb1 {[%emt 0:00:41]} Rc8 {[%emt 0:04:55]} 17. Nd4 {[%emt 0:00:51]} Nd7 {[%emt 0:04:29]} 18. Ndb5 {[%emt 0:01:38]} Ne5 {[%emt 0:05:40]} 19. Bf4 {[%emt 0:00:43]} Ba6 {[%emt 0:06:12]} 20. Qe2 {[%emt 0:02:34]} Qd7 {[%emt 0:06:36]} 21. Red1 {[%emt 0:02:21] Bxe5 would now be deadly.} Qb7 {[%emt 0:02:47]} 22. Bg3 {[%emt 0:02:19]} Rcd8 {[%emt 0:03:12]} 23. Kh1 {[%emt 0:00:31]} Nec6 {[%emt 0:04:07]} 24. f4 {[%emt 0:05:24]} g6 {[%emt 0:08:00]} (24... d5 $5) 25. Qe3 {[%emt 0:01:34]} d5 {[%emt 0:03:39]} 26. exd5 {[%emt 0:03:22]} exd5 {[%emt 0:00:33][%cal Od5d4]} 27. Qf3 {[%emt 0:02:10]} d4 {[%emt 0:01:36]} 28. Na2 {[%emt 0:00:39]} Nxa2 {[%emt 0:02:49]} 29. Bxa2 {[%emt 0:03:01]} Nb4 {[%emt 0:00:59]} 30. Qxb7 {[%emt 0:00:07]} Bxb7 {[%emt 0:00:04]} 31. Rc7 $1 {[%emt 0:00:07][%cal Bc1c7,Bc7b7,Bb7b6,Bb6f6][%mdl 32]} Bf6 {[%emt 0:04:06]} 32. Rxb7 {[%emt 0:02:07]} Nxa2 {[%emt 0:00:05]} 33. Rb6 {[%emt 0:01:13]} Bg7 {[%emt 0:01:35] [#]} 34. f5 $1 {[%emt 0:00:31]} Rfe8 {[%emt 0:06:29]} (34... d3 35. Bc7) 35. Nd6 {[%emt 0:06:03]} (35. f6 Bf8) 35... Re2 {[%emt 0:00:59]} 36. f6 {[%emt 0:04:09]} Bxf6 {[%emt 0:02:41]} 37. Nb7 $1 {[%emt 0:00:08]} Rd7 {[%emt 0:00:26]} 38. Rxf6 {[%emt 0:06:12]} Rxb7 {[%emt 0:00:14]} 39. Rxd4 {[%emt 0:00:04] [#]} (39. h3 $11) 39... Rbxb2 {[%emt 0:04:25]} (39... Nc3 $1 $17 {With the idea ...Ne4.} 40. h3 Ne4 (40... Rexb2 $2 {loses.} 41. Be5 $18) (40... Rbxb2 41. Rc6 $11)) 40. Rf1 {[%emt 0:00:07]} (40. h3 $11 {remains equal.}) 40... Rbd2 {[%emt 0:01:10] Weighted Error Value: White=0.12 (very precise) /Black=0.07 (flawless) .  Mistake:       	White=2     	Black=1      Inaccurate:     	White=2     	Black=2      OK:         	White=16    	Black=19     Best:        	White=1     	Black=1      Strong:       	White=2     	---} (40... Rxg2 $2 {perishes.} 41. Rd8+ Kg7 42. Be5+ Kh6 43. Bxb2 Rxb2 44. Rxf7 $18) 1/2-1/2

[Event "Presidents Day GM-Norm 2024"]
[Site "Santa Clara"]
[Date "2024.02.18"]
[Round "5.5"]
[White "Atanasov, Anthony"]
[Black "Atwell, Rose"]
[Result "1-0"]
[ECO "D02"]
[WhiteElo "2384"]
[BlackElo "2104"]
[Annotator "TA"]
[PlyCount "55"]
[EventDate "2024.02.13"]
[EventType "tourn"]
[EventCountry "USA"]
[SourceTitle "playchess.com"]
[Source "ChessBase"]
[SourceQuality "1"]
[TimeControl "5400+30"]

{[%evp 9,54,0,0,0,0,0,0,-8,0,-4,-4,-22,37,49,38,41,183,178,325,211,246,249,319,322,388,394,529,493,618,601,612,549,662,474,484,480,1045,1062,1057,1053,1058,1056,2721,2229,2831,1899,29992]} 1. d4 {[%emt 0:00:03]} d5 {[%emt 0:00:04]} 2. Bf4 {[%emt 0:00:05]} Nf6 {[%emt 0:00:05]} 3. e3 {[%emt 0:00:06]} e6 {[%emt 0:00:09]} 4. Nf3 {[%emt 0:00:07]} Bd6 {[%emt 0:00:07]} 5. a3 {[%emt 0:00:04]} Bxf4 {[%emt 0:01:03]} 6. exf4 {[%emt 0:00:07]} O-O {[%emt 0:03:45]} 7. Nbd2 {[%emt 0:00:28]} b6 {[%emt 0:04:24]} 8. h4 {[%emt 0:00:35] The position is equal.} c5 {[%emt 0:03:19]} 9. h5 {[%emt 0:00:26]} h6 {[%emt 0:05:50]} 10. Ne5 {[%emt 0:00:28]} Ba6 {[%emt 0:04:33]} (10... Nfd7 $11) 11. Bxa6 $14 {[%emt 0:01:18]} Nxa6 {[%emt 0:00:03]} 12. Qe2 {[%emt 0:03:26]} Qc8 {[%emt 0:10:57] [#] Loses the game.} (12... Nb8 $14) 13. g4 $1 $18 {[%emt 0:01:37][%cal Bg2g4,Bg4g5,Bg5h6,Bh6g7][%mdl 32] Strongly threatening g5.} Nh7 {[%emt 0:05:16]} (13... Ne8 {was necessary.} 14. g5 Nd6) 14. Ndf3 {[%emt 0:03:28] aiming for g5.} f6 {[%emt 0:11:26]} 15. Ng6 {[%emt 0:00:44]} Rf7 {[%emt 0:03:12] [#] Dodges Ne7+} 16. g5 $1 {[%emt 0:03:04][%mdl 512]} cxd4 {[%emt 0:04:26]} (16... Nc7 17. gxh6) 17. gxh6 {[%emt 0:03:09]} ({Less strong is} 17. Nxd4 fxg5 18. O-O-O (18. Nxe6 Nc5 $14) (18. Qxe6 $2 {too greedy.} Qxe6+ 19. Nxe6 Re8 $19) 18... Nc5 $16) 17... Nc5 {[%emt 0:03:14]} 18. Nxd4 {[%emt 0:02:07]} Qd7 {[%emt 0:06:08]} 19. hxg7 {[%emt 0:03:53]} Re8 {[%emt 0:01:34]} 20. O-O-O {[%emt 0:00:17]} Ne4 {[%emt 0:04:48]} 21. f5 {[%emt 0:08:02]} e5 {[%emt 0:03:37]} 22. Ne6 {[%emt 0:00:19]} Rxe6 {[%emt 0:01:54]} (22... Neg5 $142 23. Ngf8 Nxf8) 23. fxe6 {[%emt 0:00:08]} Qxe6 {[%emt 0:00:03]} 24. h6 {[%emt 0:04:36][%cal Oe2e4] Threatening mate with Qxe4!} f5 {[%emt 0:01:27]} 25. f3 {[%emt 0:01:06]} Qxg6 {[%emt 0:03:50]} 26. fxe4 {[%emt 0:00:07]} Qg5+ {[%emt 0:00:17]} 27. Kb1 {[%emt 0:00:29]} dxe4 {[%emt 0:00:14]} 28. Qc4 {[%emt 0:00:09] Weighted Error Value: White=0.28 (precise) /Black=0.81.  Mistake:       	---       	Black=4      Inaccurate:     	White=1     	Black=1      OK:         	White=7     	Black=5      Best:        	White=1     	Black=1      Strong:       	White=1     	---} 1-0

[Event "Presidents Day GM-Norm 2024"]
[Site "Santa Clara"]
[Date "2024.02.18"]
[Round "6.1"]
[White "Sathish, Pranav"]
[Black "Atwell, Rose"]
[Result "1/2-1/2"]
[ECO "C43"]
[WhiteElo "2357"]
[BlackElo "2104"]
[Annotator "TA"]
[PlyCount "148"]
[EventDate "2024.02.13"]
[EventType "tourn"]
[EventCountry "USA"]
[SourceTitle "playchess.com"]
[Source "ChessBase"]
[SourceQuality "1"]
[TimeControl "5400+30"]

{[%evp 18,148,15,29,18,8,30,25,25,23,132,70,73,67,66,73,108,103,169,158,148,177,127,64,170,169,334,334,333,340,413,397,383,243,254,190,199,193,193,193,193,188,187,181,216,209,221,214,295,271,329,228,270,214,196,176,176,181,181,181,181,179,202,151,144,136,116,117,166,144,166,144,156,144,144,144,145,137,133,129,136,136,136,136,136,41,136,40,108,108,136,136,158,108,121,129,158,136,152,152,166,152,158,159,159,159,190,193,283,125,125,125,125,125,143,101,101,101,101,32,125,125,125,32,32,32,32,32,32,32,32,32,32]} 1. e4 {[%emt 0:00:02]} e5 {[%emt 0:00:05]} 2. Nf3 {[%emt 0:00:03]} Nf6 {[%emt 0:00:05]} 3. d4 {[%emt 0:00:04]} Nxe4 {[%emt 1:31:50]} 4. dxe5 {[%emt 0:00:32]} d5 {[%emt 0:00:00]} 5. Nbd2 {[%emt 0:00:10]} Nxd2 {[%emt 0:01:00]} 6. Bxd2 {[%emt 0:00:17]} Be7 {[%emt 0:00:00]} 7. Bd3 {[%emt 0:00:44]} c5 {[%emt 0:00:00]} 8. c3 {[%emt 0:02:07]} Nc6 {[%emt 0:00:00]} 9. O-O {[%emt 0:04:41]} Bg4 {[%emt 0:00:00]} 10. Re1 {[%emt 0:00:55]} Qd7 {[%emt 0:00:00]} 11. h3 {[%emt 0:10:21]} Bf5 {[%emt 0:00:00]} 12. Bxf5 {[%emt 0:02:25]} Qxf5 {[%emt 0:00:00]} 13. b4 {[%emt 0:00:02]} c4 {[%emt 0:00:00]} (13... O-O $11) 14. b5 {[%emt 0:02:17]} (14. Be3 $16) 14... Nd8 $14 {[%emt 0:00:00]} 15. Nd4 {[%emt 1:13:20]} Qd7 {[%emt 0:00:00]} 16. Qf3 {[%emt 0:00:00]} Ne6 {[%emt 0:00:00]} 17. Nf5 {[%emt 0:01:00]} Ba3 {[%emt 0:06:00]} (17... g6 $16) 18. Bc1 $18 {[%emt 0:00:00]} Bf8 {[%emt 0:00:00]} 19. Rb1 {[%emt 0:00:00]} O-O-O {[%emt 0:00:00]} 20. Be3 {[%emt 0:00:00]} (20. Rd1 $16) 20... Kb8 {[%emt 0:00:00]} (20... g6 $14 21. Nd4 Nc5) 21. Red1 $18 {[%emt 0:02:00]} g6 $2 {[%emt 0:00:00]} (21... f6 22. exf6 gxf6) 22. Nd6 $1 $18 {[%emt 0:00:30]} Bxd6 {[%emt 0:02:30]} 23. Rxd5 {[%emt 0:00:30]} ({Not} 23. exd6 Qxd6 24. Rb2 (24. Qxf7 $2 Rdf8 $19) 24... d4 $16) 23... Bxe5 {[%emt 0:00:00]} 24. Rxd7 {[%emt 0:00:00]} Rxd7 {[%emt 0:00:00]} 25. Qe4 {[%emt 0:00:00]} Bxc3 {[%emt 0:00:00]} 26. Qxc4 {[%emt 0:00:00]} Bd4 {[%emt 0:00:00]} 27. Bxd4 {[%emt 0:00:00]} Nxd4 {[%emt 0:00:00]} 28. b6 {[%emt 0:00:00]} axb6 {[%emt 0:00:00]} 29. Rxb6 {[%emt 0:00:00]} Rc8 {[%emt 0:00:00]} 30. Qb4 {[%emt 0:00:00]} Rc1+ {[%emt 0:00:00]} 31. Kh2 {[%emt 0:00:00]} Rc6 {[%emt 0:00:00]} 32. Qf8+ {[%emt 0:00:00]} Rc8 {[%emt 0:00:00]} 33. Qh6 {[%emt 0:00:00]} Rc2 {[%emt 0:00:00]} 34. Qf4+ {[%emt 0:00:00]} Kc8 {[%emt 0:00:00]} 35. Rb4 {[%emt 0:00:00]} Ne6 {[%emt 0:06:30]} 36. Rc4+ {[%emt 0:00:00]} Rxc4 {[%emt 0:00:00]} 37. Qxc4+ {[%emt 0:00:00]} Rc7 {[%emt 0:00:00]} 38. Qh4 {[%emt 0:00:00]} h5 {[%emt 0:00:00]} 39. Qf6 {[%emt 0:00:00]} Rd7 {[%emt 0:00:00]} 40. f4 {[%emt 0:00:00]} Nd4 {[%emt 0:00:00]} 41. g4 {[%emt 0:00:00]} hxg4 {[%emt 0:00:00]} 42. hxg4 {[%emt 0:00:00]} Ne6 {[%emt 0:03:30]} (42... Nb5 $16 43. f5 gxf5) 43. Kg3 {[%emt 0:00:00]} Nd4 {[%emt 0:00:00]} 44. Kf2 {[%emt 0:00:00]} (44. f5 gxf5 45. g5 (45. gxf5 Rd5 $16) 45... f4+ 46. Kxf4 Nc6) 44... Ne6 {[%emt 0:00:00]} 45. Ke3 {[%emt 0:00:00]} Kc7 {[%emt 0:00:00]} 46. Qe5+ {[%emt 0:00:00]} Kc6 {[%emt 0:00:00]} 47. f5 {[%emt 0:00:00]} gxf5 {[%emt 0:00:00]} 48. gxf5 {[%emt 0:00:00]} Nc5 {[%emt 0:00:00]} 49. Qf6+ {[%emt 0:00:00]} Kc7 {[%emt 0:00:00]} 50. Kf4 {[%emt 0:00:00]} b6 {[%emt 0:00:00]} 51. Kg4 {[%emt 0:00:00]} (51. a3 $16) 51... Kb7 {[%emt 0:00:00]} (51... Ne4 $14 52. Qb2 f6) 52. Kh5 {[%emt 0:00:00]} (52. Qe5 $16) 52... Kc7 {[%emt 0:00:00]} ({Better is} 52... Ne4 $14 53. Qe5 Nd6) 53. Qe5+ {[%emt 0:00:00]} Kb7 {[%emt 0:00:00]} 54. Kh6 {[%emt 0:00:00]} Kc8 {[%emt 0:00:00]} 55. Qe8+ {[%emt 0:00:00]} (55. Kg7 $142) 55... Kc7 $16 {[%emt 0:00:00]} 56. Kg7 {[%emt 0:00:00]} Kb7 {[%emt 0:00:00]} 57. Kf8 {[%emt 0:00:00]} Kc7 {[%emt 0:00:00]} 58. Qe5+ {[%emt 0:00:00]} Kc8 {[%emt 0:00:00]} 59. Qf4 {[%emt 0:00:00]} Kb7 {[%emt 0:00:00]} 60. Qf3+ {[%emt 0:00:00]} Kc7 {[%emt 0:00:19]} 61. Ke8 {[%emt 0:00:00]} Nd3 {[%emt 0:02:38]} 62. Qg3+ {[%emt 0:00:00]} Kc8 {[%emt 0:00:05]} (62... Kc6 {was worth a try.} 63. Qg2+ Kc7 64. Qh2+ Kc6) 63. f6 {[%emt 0:00:00]} (63. a4 $18 {is more deadly.}) 63... Nc5 $16 {[%emt 0:00:28]} 64. Qa3 {[%emt 0:00:00]} Kb7 {[%emt 0:00:22]} 65. Qf3+ {[%emt 0:00:00]} Kc7 {[%emt 0:00:14]} 66. Qa8 {[%emt 0:00:00]} Kd6 {[%emt 0:00:29]} 67. Qb8+ {[%emt 0:00:00]} Kc6 {[%emt 0:00:07] [#]} 68. a4 {[%emt 0:00:00]} (68. Qe5 $1 $16 {[%mdl 512]}) 68... Nb7 {[%emt 0:01:06] [#]} (68... Ne4 $14) 69. Qa8 $1 $16 {[%emt 0:00:00]} Rc7 {[%emt 0:01:56]} 70. Qa6 {[%emt 0:00:00]} ({White should play} 70. Kf8 $16) 70... Nd6+ $14 {[%emt 0:00:14]} 71. Kf8 {[%emt 0:00:00]} Kc5 {[%emt 0:01:03]} 72. a5 {[%emt 0:00:00]} bxa5 {[%emt 0:00:08]} 73. Qxa5+ {[%emt 0:00:00]} Kc6 {[%emt 0:00:24]} 74. Qc3+ {[%emt 0:00:00]} Kd7 {[%emt 0:00:17]} 1/2-1/2

[Event "Presidents Day GM-Norm 2024"]
[Site "Santa Clara"]
[Date "2024.02.18"]
[Round "6.2"]
[White "Wang, Isaac"]
[Black "Atanasov, Anthony"]
[Result "0-1"]
[ECO "E06"]
[WhiteElo "2316"]
[BlackElo "2384"]
[Annotator "TA"]
[PlyCount "86"]
[EventDate "2024.02.13"]
[EventType "tourn"]
[EventCountry "USA"]
[SourceTitle "playchess.com"]
[Source "ChessBase"]
[SourceQuality "1"]
[TimeControl "5400+30"]

{[%evp 12,86,0,0,0,0,0,0,0,0,0,0,0,0,0,0,0,0,56,64,64,65,66,68,72,0,0,-43,-55,-65,64,54,52,56,54,0,16,9,11,0,0,0,0,0,0,0,0,-22,0,0,-14,-124,-142,-102,-104,-334,-348,-426,-428,-427,-146,-421,-420,-644,-632,-644,-629,-638,-635,-1388,-1209,-6215,-6179,-5214,-5197,-29989,-29990]} 1. d4 {[%emt 0:00:22]} Nf6 {[%emt 0:00:08]} 2. c4 {[%emt 0:00:10]} e6 {[%emt 0:00:05]} 3. Nf3 {[%emt 0:00:12]} d5 {[%emt 0:00:07]} 4. Nc3 {[%emt 0:00:07]} Be7 {[%emt 0:00:08]} 5. g3 {[%emt 0:00:11]} O-O {[%emt 0:00:08]} 6. Bg2 {[%emt 0:00:05]} dxc4 {[%emt 0:00:07]} 7. Ne5 {[%emt 0:00:12]} Qd6 {[%emt 0:00:08]} 8. O-O {[%emt 0:01:44]} Qa6 {[%emt 0:00:46]} 9. a4 {[%emt 0:01:30]} Nc6 {[%emt 0:00:11] The position is equal.} 10. Nb5 {[%emt 0:03:19]} Nxe5 {[%emt 0:00:11]} 11. dxe5 {[%emt 0:01:13]} Rd8 $1 {[%emt 0:00:11]} 12. exf6 {[%emt 0:02:09]} Rxd1 {[%emt 0:00:02]} 13. Rxd1 {[%emt 0:02:47]} Bd6 {[%emt 0:00:02]} (13... Bxf6 $2 14. Nxc7 Qa5 15. Nxa8 $18) 14. Bf4 $1 {[%emt 0:00:52][%cal Rb5d6]} gxf6 {[%emt 0:00:13]} (14... Qa5 $1 $11) 15. Bxd6 $14 {[%emt 0:05:08]} cxd6 {[%emt 0:00:02]} 16. Nc7 $1 {[%emt 0:00:13]} Qb6 {[%emt 0:00:18][%csl LRb2,LRc7]} 17. Nxa8 {[%emt 0:00:09]} Qxb2 {[%emt 0:00:03]} 18. Rab1 {[%emt 0:05:23]} (18. e3 $16) 18... Qe5 $1 $11 {[%emt 0:29:13]} (18... Qxe2 $2 19. Rxd6 Kg7 20. Rd8 $18 (20. Bxb7 $2 Bxb7 21. Nc7 Be4 $19) (20. Nc7 Qc2 $18)) 19. Nc7 {[%emt 0:19:37][%cal Ba8c7,Bc7b5,Bb5d4][%mdl 32] And now Nb5 would win.} d5 {[%emt 0:00:26][%mdl 1024] Black has compensation.} 20. Nb5 {[%emt 0:04:08] e4 would now be deadly.} f5 {[%emt 0:01:20]} (20... Bd7 $1 $15 21. a5 (21. Nxa7 Bxa4 22. Re1 c3 $17) 21... Bxb5 22. Rxb5 Qxe2) 21. e3 $14 {[%emt 0:02:30]} a6 {[%emt 0:12:33]} 22. Nd4 {[%emt 0:07:27]} Qc7 {[%emt 0:02:25] Prevents a5} 23. Rdc1 {[%emt 0:03:12]} Qa5 $1 {[%emt 0:12:30] Against Rb4} 24. Ra1 $1 {[%emt 0:03:24]} Bd7 {[%emt 0:02:44]} 25. Rcb1 {[%emt 0:08:02]} b6 {[%emt 0:01:42]} 26. h4 {[%emt 0:04:10]} Kg7 {[%emt 0:11:16]} 27. Bf3 {[%emt 0:04:27]} e5 {[%emt 0:01:29]} 28. Nc2 {[%emt 0:01:50]} f4 {[%emt 0:09:55]} 29. exf4 {[%emt 0:02:09]} Bf5 {[%emt 0:02:05]} (29... Bxa4 $2 30. fxe5 b5 31. Bxd5 $18) 30. Rc1 {[%emt 0:02:58]} d4 {[%emt 0:05:08] Inhibits Ne3. White should prevent ...c3. Dancing on a razor blade.} 31. Nxd4 {[%emt 0:11:53]} exd4 $17 {[%emt 0:00:01]} 32. Rxc4 {[%emt 0:00:08][%cal Oa1d1] [#]} Be6 $1 $36 {[%emt 0:00:15][%mdl 2048] Black is on the roll.} ({Don't play} 32... d3 33. Rd1 $15) 33. Rcc1 {[%emt 0:00:29]} (33. Rxd4 $2 {is the wrong capture.} Qc3 34. Rad1 Qxf3 $19) (33. Rc6 $17 {only move.}) 33... d3 $19 {[%emt 0:04:03]} 34. Ra3 {[%emt 0:01:16]} d2 {[%emt 0:00:18]} 35. Rd1 {[%emt 0:00:32]} Bc4 {[%emt 0:04:02] Dodges Rd3} (35... b5 $19 {and Black stays clearly on top.} 36. Kg2 (36. Rd3 $2 bxa4 37. h5 a3 $19) 36... Bc4 (36... bxa4 $2 37. Rda1 $19) 37. axb5 Qxa3 38. bxa6 Bxa6 39. Rxd2 Bc8) 36. Kg2 $2 {[%emt 0:02:13][%mdl 8192] Loses the game.} (36. Re3 $17 {was forced.}) 36... b5 {[%emt 0:00:21]} 37. Re3 {[%emt 0:00:54]} (37. axb5 $142 Qxa3 38. bxa6) 37... bxa4 {[%emt 0:00:16] Strongly threatening ...a3.} 38. Ra1 {[%emt 0:00:46]} Qb4 {[%emt 0:01:18]} 39. h5 {[%emt 0:01:10]} h6 {[%emt 0:00:56]} 40. Kg1 {[%emt 0:00:28]} Qb2 {[%emt 0:01:02]} 41. Rxa4 {[%emt 0:00:38]} Qc1+ {[%emt 0:00:12]} 42. Kh2 {[%emt 0:00:15] [#]} Bd5 $1 {[%emt 0:00:33][%mdl 512]} 43. Bxd5 {[%emt 0:00:34]} (43. Rd4 Bxf3) 43... d1=Q {[%emt 0:00:08] Weighted Error Value: White=0.74/Black=0.18 (very precise) .  Loses game:     	White=2     	---        Missed win:     	---       	Black=1      Mistake:       	White=3     	Black=2      Inaccurate:     	White=2     	---        OK:         	White=9     	Black=14     Best:        	White=2     	Black=6      Strong:       	White=3     	Black=4} 0-1